[Event "*** SCC Grand Prix: Titled Tuesday Blitz"]
[Site "Chess.com"]
[Date "2020.08.11"]
[Round "1"]
[White "Shubinkirill2003"]
[Black "Bastiandash"]
[Result "1-0"]
[WhiteElo "2647"]
[BlackElo "2302"]
[TimeControl "180+1"]
[EndTime "10:06:02 PDT"]
[Termination "Shubinkirill2003 won by checkmate"]

1. e4 {[%clk 0:02:59.3]} 1... c6 {[%clk 0:02:58.2]} 2. d4 {[%clk 0:02:59.1]}
2... d5 {[%clk 0:02:58.2]} 3. exd5 {[%clk 0:03:00]} 3... cxd5 {[%clk 0:02:59.1]}
4. Bd3 {[%clk 0:03:00.5]} 4... Nc6 {[%clk 0:02:59.6]} 5. c3 {[%clk 0:03:01.1]}
5... Nf6 {[%clk 0:02:58.5]} 6. Bf4 {[%clk 0:03:00.8]} 6... Bg4 {[%clk
0:02:57.5]} 7. Qb3 {[%clk 0:03:01.1]} 7... Qd7 {[%clk 0:02:49]} 8. Nd2 {[%clk
0:03:00.5]} 8... a6 {[%clk 0:02:47.1]} 9. Ngf3 {[%clk 0:02:59.8]} 9... Rc8
{[%clk 0:02:43.4]} 10. h3 {[%clk 0:02:53.7]} 10... Bf5 {[%clk 0:02:29]} 11. Bxf5
{[%clk 0:02:47.4]} 11... Qxf5 {[%clk 0:02:27.9]} 12. Qxb7 {[%clk 0:02:46.5]}
12... Nd8 {[%clk 0:01:50.3]} 13. Qxa6 {[%clk 0:02:42]} 13... Rc6 {[%clk
0:01:47.7]} 14. Qb5 {[%clk 0:02:30.6]} 14... Nd7 {[%clk 0:00:49.6]} 15. Be3
{[%clk 0:02:16.2]} 15... Rb6 {[%clk 0:00:45.9]} 16. Qa4 {[%clk 0:02:15.2]} 16...
Rxb2 {[%clk 0:00:46.1]} 17. O-O {[%clk 0:02:10]} 17... g5 {[%clk 0:00:21.3]} 18.
Rab1 {[%clk 0:02:04]} 18... Rxb1 {[%clk 0:00:19.2]} 19. Rxb1 {[%clk 0:02:04.9]}
19... Rg8 {[%clk 0:00:18.3]} 20. Ne5 {[%clk 0:02:03.6]} 20... f6 {[%clk
0:00:13.8]} 21. g4 {[%clk 0:01:55]} 21... Qe6 {[%clk 0:00:11.8]} 22. Rb6 {[%clk
0:01:53.2]} 22... fxe5 {[%clk 0:00:06.4]} 23. Rxe6 {[%clk 0:01:52.4]} 23... Nxe6
{[%clk 0:00:07.3]} 24. Qa8+ {[%clk 0:01:51.5]} 24... Kf7 {[%clk 0:00:06.4]} 25.
Qxd5 {[%clk 0:01:50.8]} 25... Bg7 {[%clk 0:00:06]} 26. Qxd7 {[%clk 0:01:49.2]}
26... Rd8 {[%clk 0:00:03.6]} 27. Qb5 {[%clk 0:01:48.4]} 27... exd4 {[%clk
0:00:04.5]} 28. cxd4 {[%clk 0:01:48.8]} 28... Bxd4 {[%clk 0:00:04.6]} 29. Qf5+
{[%clk 0:01:48.1]} 29... Bf6 {[%clk 0:00:04.2]} 30. Ne4 {[%clk 0:01:48.1]} 30...
Ng7 {[%clk 0:00:04.3]} 31. Nxg5+ {[%clk 0:01:47.7]} 31... Ke8 {[%clk 0:00:04.7]}
32. Qb5+ {[%clk 0:01:46.4]} 32... Kf8 {[%clk 0:00:04.5]} 33. Nxh7+ {[%clk
0:01:46.2]} 33... Kg8 {[%clk 0:00:04.6]} 34. Nxf6+ {[%clk 0:01:46]} 34... exf6
{[%clk 0:00:05.5]} 35. Kg2 {[%clk 0:01:45.4]} 35... Rf8 {[%clk 0:00:04.9]} 36.
Qd5+ {[%clk 0:01:45.1]} 36... Kh8 {[%clk 0:00:04.9]} 37. a4 {[%clk 0:01:45.7]}
37... f5 {[%clk 0:00:05.4]} 38. a5 {[%clk 0:01:45.7]} 38... fxg4 {[%clk
0:00:05.2]} 39. hxg4 {[%clk 0:01:45.3]} 39... Ne8 {[%clk 0:00:04]} 40. Bd4+
{[%clk 0:01:44.9]} 40... Kh7 {[%clk 0:00:04.4]} 41. a6 {[%clk 0:01:43.7]} 41...
Nc7 {[%clk 0:00:02.1]} 42. Qd7+ {[%clk 0:01:43.3]} 42... Kg6 {[%clk 0:00:02.6]}
43. Qg7# {[%clk 0:01:42.6]} 1-0

[Event "*** SCC Grand Prix: Titled Tuesday Blitz"]
[Site "Chess.com"]
[Date "2020.08.11"]
[Round "1"]
[White "natelleka"]
[Black "pastouche06"]
[Result "0-1"]
[WhiteElo "2084"]
[BlackElo "2497"]
[TimeControl "180+1"]
[EndTime "10:06:03 PDT"]
[Termination "pastouche06 won by resignation"]

1. e4 {[%clk 0:02:45.4]} 1... c6 {[%clk 0:01:53.6]} 2. d4 {[%clk 0:02:44.4]}
2... d5 {[%clk 0:01:52.8]} 3. f3 {[%clk 0:02:44.5]} 3... Qb6 {[%clk 0:01:49.3]}
4. Nc3 {[%clk 0:02:42.5]} 4... dxe4 {[%clk 0:01:49.1]} 5. Bc4 {[%clk 0:02:41.4]}
5... exf3 {[%clk 0:01:39.2]} 6. Nxf3 {[%clk 0:02:39.9]} 6... Nf6 {[%clk
0:01:39.7]} 7. O-O {[%clk 0:02:08.7]} 7... e6 {[%clk 0:01:31.8]} 8. Ne5 {[%clk
0:01:51.3]} 8... Be7 {[%clk 0:01:30]} 9. Bg5 {[%clk 0:01:48.9]} 9... O-O {[%clk
0:01:29.5]} 10. Bxf6 {[%clk 0:01:28.1]} 10... Bxf6 {[%clk 0:01:26.7]} 11. Rxf6
{[%clk 0:01:25.6]} 11... gxf6 {[%clk 0:01:27.6]} 12. Qg4+ {[%clk 0:01:25.4]}
12... Kh8 {[%clk 0:01:27.4]} 13. Qh4 {[%clk 0:01:00.2]} 13... Qd8 {[%clk
0:01:26.6]} 14. Rf1 {[%clk 0:00:52.7]} 14... fxe5 {[%clk 0:01:18.2]} 15. Qh6
{[%clk 0:00:28.3]} 15... Nd7 {[%clk 0:01:01.7]} 16. Bd3 {[%clk 0:00:23.1]} 16...
f5 {[%clk 0:00:57.8]} 17. Rf3 {[%clk 0:00:22.1]} 17... Qf6 {[%clk 0:00:56.9]}
18. Qh5 {[%clk 0:00:13.9]} 18... exd4 {[%clk 0:00:44]} 19. Rh3 {[%clk
0:00:13.6]} 19... Qf7 {[%clk 0:00:41.4]} 0-1

[Event "*** SCC Grand Prix: Titled Tuesday Blitz"]
[Site "Chess.com"]
[Date "2020.08.11"]
[Round "1"]
[White "Batsai"]
[Black "INDIAN-ELEPHANT"]
[Result "0-1"]
[WhiteElo "2329"]
[BlackElo "2669"]
[TimeControl "180+1"]
[EndTime "10:06:05 PDT"]
[Termination "INDIAN-ELEPHANT won by resignation"]

1. e4 {[%clk 0:02:58.6]} 1... e5 {[%clk 0:02:59.9]} 2. Nf3 {[%clk 0:02:58]} 2...
Nc6 {[%clk 0:02:59.6]} 3. Bb5 {[%clk 0:02:55.7]} 3... a6 {[%clk 0:02:59.2]} 4.
Ba4 {[%clk 0:02:55.8]} 4... Nf6 {[%clk 0:02:58.1]} 5. O-O {[%clk 0:02:56.2]}
5... Be7 {[%clk 0:02:57.9]} 6. Re1 {[%clk 0:02:55.7]} 6... b5 {[%clk 0:02:58.5]}
7. Bb3 {[%clk 0:02:55.4]} 7... O-O {[%clk 0:02:58.1]} 8. h3 {[%clk 0:02:54.9]}
8... d6 {[%clk 0:02:58.1]} 9. c3 {[%clk 0:02:54.9]} 9... Na5 {[%clk 0:02:57.2]}
10. Bc2 {[%clk 0:02:54.6]} 10... c5 {[%clk 0:02:57.8]} 11. d4 {[%clk 0:02:55]}
11... Qc7 {[%clk 0:02:57.8]} 12. d5 {[%clk 0:02:48.5]} 12... Bd7 {[%clk
0:02:57.1]} 13. Nbd2 {[%clk 0:02:47.5]} 13... c4 {[%clk 0:02:56.3]} 14. Nf1
{[%clk 0:02:42.4]} 14... Nb7 {[%clk 0:02:56.1]} 15. g4 {[%clk 0:02:36.7]} 15...
h5 {[%clk 0:02:55.6]} 16. N3h2 {[%clk 0:02:29.8]} 16... g6 {[%clk 0:02:55.3]}
17. Ng3 {[%clk 0:02:26.6]} 17... hxg4 {[%clk 0:02:53]} 18. hxg4 {[%clk
0:02:25.6]} 18... Nh7 {[%clk 0:02:51.6]} 19. Bh6 {[%clk 0:02:24.8]} 19... Rfe8
{[%clk 0:02:51.2]} 20. Qf3 {[%clk 0:02:17.8]} 20... Qd8 {[%clk 0:02:50.8]} 21.
Ne2 {[%clk 0:01:51.3]} 21... Bg5 {[%clk 0:02:50.1]} 22. Qh3 {[%clk 0:01:51.2]}
22... Bxh6 {[%clk 0:02:46.8]} 23. Qxh6 {[%clk 0:01:52.1]} 23... Qg5 {[%clk
0:02:47.2]} 24. Qxg5 {[%clk 0:01:51.1]} 24... Nxg5 {[%clk 0:02:47]} 25. Kg2
{[%clk 0:01:45.5]} 25... Kg7 {[%clk 0:02:47]} 26. Nf3 {[%clk 0:01:40.7]} 26...
Nxf3 {[%clk 0:02:44.5]} 27. Kxf3 {[%clk 0:01:41.6]} 27... Rh8 {[%clk 0:02:44.8]}
28. Rh1 {[%clk 0:01:41.6]} 28... a5 {[%clk 0:02:44.7]} 29. Ng3 {[%clk
0:01:37.2]} 29... Nc5 {[%clk 0:02:44.3]} 30. Rxh8 {[%clk 0:01:36.3]} 30... Rxh8
{[%clk 0:02:43.8]} 31. Rh1 {[%clk 0:01:36.8]} 31... Rb8 {[%clk 0:02:42.5]} 32.
Ne2 {[%clk 0:01:27.6]} 32... b4 {[%clk 0:02:41.6]} 33. Rb1 {[%clk 0:01:25.2]}
33... b3 {[%clk 0:02:40.9]} 34. axb3 {[%clk 0:01:24.4]} 34... cxb3 {[%clk
0:02:41.6]} 35. Bd1 {[%clk 0:01:24.1]} 35... Rh8 {[%clk 0:02:39.6]} 36. Ng3
{[%clk 0:01:15.6]} 36... a4 {[%clk 0:02:39]} 37. Ra1 {[%clk 0:01:14]} 37... Rh2
{[%clk 0:02:37.4]} 38. Be2 {[%clk 0:01:06.4]} 38... Rh4 {[%clk 0:02:35.5]} 39.
Ke3 {[%clk 0:00:48.2]} 39... Bxg4 {[%clk 0:02:35.1]} 40. f3 {[%clk 0:00:47.5]}
40... Bd7 {[%clk 0:02:34.6]} 41. Nf1 {[%clk 0:00:47]} 41... Rh1 {[%clk
0:02:34.1]} 42. Kf2 {[%clk 0:00:44.8]} 42... f5 {[%clk 0:02:33.3]} 43. Kg2
{[%clk 0:00:44.1]} 43... Rh4 {[%clk 0:02:32]} 44. exf5 {[%clk 0:00:43.1]} 44...
gxf5 {[%clk 0:02:31.9]} 45. Ne3 {[%clk 0:00:43.3]} 45... Kf6 {[%clk 0:02:31.2]}
46. Nc4 {[%clk 0:00:42.3]} 46... Ke7 {[%clk 0:02:31]} 47. Nb6 {[%clk 0:00:41.4]}
47... Be8 {[%clk 0:02:30.8]} 48. Kf2 {[%clk 0:00:39.6]} 48... Rh2+ {[%clk
0:02:29.6]} 49. Ke3 {[%clk 0:00:37.1]} 49... f4+ {[%clk 0:02:29.7]} 50. Kd2
{[%clk 0:00:36.3]} 50... Bb5 {[%clk 0:02:29.8]} 51. c4 {[%clk 0:00:36.5]} 51...
Be8 {[%clk 0:02:29.4]} 52. Rg1 {[%clk 0:00:15.6]} 52... Kd8 {[%clk 0:02:28.9]}
53. Rg7 {[%clk 0:00:14.3]} 53... a3 {[%clk 0:02:26.9]} 54. bxa3 {[%clk
0:00:14.3]} 54... b2 {[%clk 0:02:27.8]} 55. Rg1 {[%clk 0:00:14.3]} 55... Kc7
{[%clk 0:02:28.3]} 56. Rb1 {[%clk 0:00:12.2]} 56... Nb3+ {[%clk 0:02:27]} 57.
Kc3 {[%clk 0:00:11.3]} 57... Nd4 {[%clk 0:02:27.9]} 58. Bd3 {[%clk 0:00:09.5]}
58... Kxb6 {[%clk 0:02:27.9]} 59. Rxb2+ {[%clk 0:00:09.4]} 59... Rxb2 {[%clk
0:02:28.2]} 60. Kxb2 {[%clk 0:00:10.3]} 60... Nxf3 {[%clk 0:02:28.6]} 61. Kc3
{[%clk 0:00:10.3]} 0-1

[Event "*** SCC Grand Prix: Titled Tuesday Blitz"]
[Site "Chess.com"]
[Date "2020.08.11"]
[Round "1"]
[White "adotand"]
[Black "lider34"]
[Result "1-0"]
[WhiteElo "2794"]
[BlackElo "2398"]
[TimeControl "180+1"]
[EndTime "10:06:06 PDT"]
[Termination "adotand won by resignation"]

1. e4 {[%clk 0:03:00.5]} 1... c6 {[%clk 0:02:59.3]} 2. d4 {[%clk 0:02:59.9]}
2... d5 {[%clk 0:02:59.7]} 3. exd5 {[%clk 0:03:00.6]} 3... cxd5 {[%clk
0:02:58.9]} 4. Bd3 {[%clk 0:03:01.3]} 4... Nc6 {[%clk 0:02:58.4]} 5. c3 {[%clk
0:03:00.7]} 5... Nf6 {[%clk 0:02:58.6]} 6. Bf4 {[%clk 0:02:59.1]} 6... Bg4
{[%clk 0:02:58]} 7. Ne2 {[%clk 0:02:57]} 7... e6 {[%clk 0:02:56.9]} 8. O-O
{[%clk 0:02:55.8]} 8... Bd6 {[%clk 0:02:56.6]} 9. Bxd6 {[%clk 0:02:55.5]} 9...
Qxd6 {[%clk 0:02:56.2]} 10. Qe1 {[%clk 0:02:56.2]} 10... O-O {[%clk 0:02:53.3]}
11. f4 {[%clk 0:02:47.8]} 11... Rfe8 {[%clk 0:02:39.3]} 12. Ng3 {[%clk
0:02:46.1]} 12... Qd7 {[%clk 0:02:19]} 13. Nd2 {[%clk 0:02:42.7]} 13... Bf5
{[%clk 0:02:16.1]} 14. Qe2 {[%clk 0:02:40.9]} 14... Bxd3 {[%clk 0:02:08.7]} 15.
Qxd3 {[%clk 0:02:41]} 15... Rab8 {[%clk 0:02:08.2]} 16. Rae1 {[%clk 0:02:27]}
16... b5 {[%clk 0:02:06.8]} 17. b4 {[%clk 0:02:27]} 17... Qc7 {[%clk 0:01:50]}
18. Nb3 {[%clk 0:02:24.2]} 18... a5 {[%clk 0:01:36.9]} 19. a3 {[%clk 0:02:23.7]}
19... axb4 {[%clk 0:01:36.5]} 20. axb4 {[%clk 0:02:24.2]} 20... Nd7 {[%clk
0:01:36.1]} 21. Nc5 {[%clk 0:02:12.4]} 21... Nxc5 {[%clk 0:01:30.2]} 22. dxc5
{[%clk 0:02:11.1]} 22... d4 {[%clk 0:01:24.7]} 23. Ne4 {[%clk 0:02:08.6]} 23...
dxc3 {[%clk 0:01:22.4]} 24. Qxc3 {[%clk 0:02:08.5]} 24... Red8 {[%clk
0:01:14.2]} 25. Nd6 {[%clk 0:02:01.7]} 25... Ne7 {[%clk 0:01:12.9]} 26. Qg3
{[%clk 0:01:55.9]} 26... Nf5 {[%clk 0:01:07.7]} 27. Nxf5 {[%clk 0:01:54.2]}
27... exf5 {[%clk 0:01:07.8]} 28. Re5 {[%clk 0:01:54.2]} 28... g6 {[%clk
0:01:03.9]} 29. Rxf5 {[%clk 0:01:50.7]} 29... Rd2 {[%clk 0:00:56.9]} 30. Re5
{[%clk 0:01:46.1]} 30... Rbd8 {[%clk 0:00:55.7]} 31. f5 {[%clk 0:01:43.7]} 31...
Qc6 {[%clk 0:00:49]} 32. fxg6 {[%clk 0:01:41.8]} 32... fxg6 {[%clk 0:00:46.1]}
33. Re7 {[%clk 0:01:29.4]} 33... R8d3 {[%clk 0:00:37.4]} 34. Qg5 {[%clk
0:01:21.7]} 34... h6 {[%clk 0:00:24.2]} 35. Rg7+ {[%clk 0:01:15.6]} 35... Kxg7
{[%clk 0:00:18.6]} 36. Qe7+ {[%clk 0:01:16]} 1-0

[Event "*** SCC Grand Prix: Titled Tuesday Blitz"]
[Site "Chess.com"]
[Date "2020.08.11"]
[Round "1"]
[White "keepitcool9499"]
[Black "Manukyan_Artak"]
[Result "1-0"]
[WhiteElo "2659"]
[BlackElo "2313"]
[TimeControl "180+1"]
[EndTime "10:06:08 PDT"]
[Termination "keepitcool9499 won by resignation"]

1. d4 {[%clk 0:03:00.9]} 1... c6 {[%clk 0:03:00.1]} 2. c4 {[%clk 0:03:01.6]}
2... d5 {[%clk 0:03:00.6]} 3. cxd5 {[%clk 0:03:02.5]} 3... cxd5 {[%clk
0:03:01.5]} 4. Nc3 {[%clk 0:03:03.4]} 4... Nc6 {[%clk 0:03:01.6]} 5. Bf4 {[%clk
0:03:04.3]} 5... Nf6 {[%clk 0:03:01.9]} 6. Nf3 {[%clk 0:03:04.6]} 6... Bf5
{[%clk 0:03:00.8]} 7. e3 {[%clk 0:03:02.8]} 7... e6 {[%clk 0:03:00.9]} 8. Qb3
{[%clk 0:02:58.3]} 8... Bb4 {[%clk 0:03:00.6]} 9. Bb5 {[%clk 0:02:55.9]} 9...
O-O {[%clk 0:02:58.1]} 10. O-O {[%clk 0:02:54]} 10... Qb6 {[%clk 0:02:43.5]} 11.
Bxc6 {[%clk 0:02:42.3]} 11... bxc6 {[%clk 0:02:42.9]} 12. Na4 {[%clk 0:02:39.3]}
12... Qa5 {[%clk 0:02:42.4]} 13. Ne5 {[%clk 0:02:35.3]} 13... Rfc8 {[%clk
0:02:02.1]} 14. Rfc1 {[%clk 0:02:31.5]} 14... Qb5 {[%clk 0:01:51]} 15. Nxc6
{[%clk 0:02:16.2]} 15... Rxc6 {[%clk 0:01:47.8]} 16. Rxc6 {[%clk 0:02:17.1]}
16... Qxc6 {[%clk 0:01:47.7]} 17. Qxb4 {[%clk 0:02:15.2]} 17... Ne4 {[%clk
0:01:44.5]} 18. Nc5 {[%clk 0:02:05.2]} 18... Nxc5 {[%clk 0:01:43.5]} 19. dxc5
{[%clk 0:02:03.1]} 19... f6 {[%clk 0:01:41.9]} 20. Bd6 {[%clk 0:02:00.1]} 20...
e5 {[%clk 0:01:36.4]} 21. h3 {[%clk 0:01:41.7]} 21... h5 {[%clk 0:01:30.9]} 22.
Rd1 {[%clk 0:01:38.7]} 22... Be6 {[%clk 0:01:29.2]} 23. Qa5 {[%clk 0:01:32.8]}
23... a6 {[%clk 0:01:15.2]} 24. Qb6 {[%clk 0:01:24.9]} 24... Rc8 {[%clk
0:01:12.5]} 25. Rd3 {[%clk 0:01:19.3]} 25... Qb5 {[%clk 0:00:50.5]} 26. Rb3
{[%clk 0:01:02.2]} 26... Qe2 {[%clk 0:00:46.7]} 27. Qb7 {[%clk 0:00:56.3]} 27...
Qe1+ {[%clk 0:00:35.3]} 28. Kh2 {[%clk 0:00:54.4]} 28... Qxf2 {[%clk 0:00:35.7]}
29. Qe7 {[%clk 0:00:48.7]} 29... Bf5 {[%clk 0:00:33.9]} 30. Rb7 {[%clk
0:00:45.1]} 1-0

[Event "*** SCC Grand Prix: Titled Tuesday Blitz"]
[Site "Chess.com"]
[Date "2020.08.11"]
[Round "1"]
[White "DenishevM"]
[Black "TioCridineno"]
[Result "1-0"]
[WhiteElo "2558"]
[BlackElo "2198"]
[TimeControl "180+1"]
[EndTime "10:06:08 PDT"]
[Termination "DenishevM won by checkmate"]

1. d4 {[%clk 0:03:00.4]} 1... Nf6 {[%clk 0:02:57.6]} 2. c4 {[%clk 0:03:00.4]}
2... g6 {[%clk 0:02:57.3]} 3. Nf3 {[%clk 0:02:54.3]} 3... Bg7 {[%clk 0:02:57]}
4. Nc3 {[%clk 0:02:54.9]} 4... O-O {[%clk 0:02:56.4]} 5. e4 {[%clk 0:02:55]}
5... d6 {[%clk 0:02:56.7]} 6. Be2 {[%clk 0:02:55.4]} 6... e5 {[%clk 0:02:56.4]}
7. d5 {[%clk 0:02:55.8]} 7... a5 {[%clk 0:02:55.6]} 8. Bg5 {[%clk 0:02:55.6]}
8... Na6 {[%clk 0:02:53.3]} 9. Nd2 {[%clk 0:02:55.1]} 9... Qe8 {[%clk
0:02:50.6]} 10. O-O {[%clk 0:02:54.4]} 10... Nd7 {[%clk 0:02:47.5]} 11. f3
{[%clk 0:02:47]} 11... Ndc5 {[%clk 0:02:45.8]} 12. b3 {[%clk 0:02:45]} 12... Bd7
{[%clk 0:02:44.7]} 13. a3 {[%clk 0:02:44.8]} 13... f5 {[%clk 0:02:42]} 14. Rb1
{[%clk 0:02:38.3]} 14... f4 {[%clk 0:02:27]} 15. b4 {[%clk 0:02:34.5]} 15...
axb4 {[%clk 0:02:26]} 16. axb4 {[%clk 0:02:35.4]} 16... Na4 {[%clk 0:02:26.2]}
17. Qc2 {[%clk 0:02:33.4]} 17... Nxc3 {[%clk 0:02:25]} 18. Qxc3 {[%clk
0:02:34.3]} 18... b6 {[%clk 0:02:21.3]} 19. Rfc1 {[%clk 0:02:26.6]} 19... Rf7
{[%clk 0:02:21.1]} 20. c5 {[%clk 0:02:24.4]} 20... bxc5 {[%clk 0:02:20]} 21.
Bxa6 {[%clk 0:02:24.3]} 21... Rxa6 {[%clk 0:02:19.5]} 22. bxc5 {[%clk 0:02:24]}
22... Bf8 {[%clk 0:02:18.4]} 23. c6 {[%clk 0:02:23.2]} 23... Bc8 {[%clk
0:02:17.6]} 24. Rb8 {[%clk 0:02:19.3]} 24... h6 {[%clk 0:02:12.6]} 25. Bh4
{[%clk 0:02:17.8]} 25... Kh7 {[%clk 0:02:03.1]} 26. Nc4 {[%clk 0:02:12.6]} 26...
Rg7 {[%clk 0:01:43.7]} 27. Ra1 {[%clk 0:01:58.1]} 27... Rxa1+ {[%clk 0:01:37.8]}
28. Qxa1 {[%clk 0:01:59]} 28... g5 {[%clk 0:01:38.7]} 29. Bf2 {[%clk 0:01:58.1]}
29... g4 {[%clk 0:01:38.7]} 30. Qa8 {[%clk 0:01:57.8]} 30... gxf3 {[%clk
0:01:38.6]} 31. Rxc8 {[%clk 0:01:57.4]} 31... Qg6 {[%clk 0:01:37.1]} 32. g3
{[%clk 0:01:40.1]} 32... fxg3 {[%clk 0:01:36.8]} 33. hxg3 {[%clk 0:01:39.2]}
33... Qxe4 {[%clk 0:01:36.4]} 34. Rxf8 {[%clk 0:01:32.7]} 34... Qb1+ {[%clk
0:01:34]} 35. Kh2 {[%clk 0:01:31.5]} 35... Qf1 {[%clk 0:01:08.5]} 36. Rh8+
{[%clk 0:01:28.8]} 36... Kg6 {[%clk 0:01:08.8]} 37. Qe8+ {[%clk 0:01:24.5]}
37... Kf6 {[%clk 0:00:28.8]} 38. Qe6+ {[%clk 0:01:17.3]} 38... Kg5 {[%clk
0:00:28.3]} 39. Be3+ {[%clk 0:01:15.6]} 39... Kh5 {[%clk 0:00:24.9]} 40. Qxh6+
{[%clk 0:01:15.5]} 40... Kg4 {[%clk 0:00:24.6]} 41. Qe6# {[%clk 0:01:13]} 1-0

[Event "*** SCC Grand Prix: Titled Tuesday Blitz"]
[Site "Chess.com"]
[Date "2020.08.11"]
[Round "1"]
[White "Sammed_Shete"]
[Black "SHIVACalypso"]
[Result "1-0"]
[WhiteElo "2644"]
[BlackElo "2299"]
[TimeControl "180+1"]
[EndTime "10:06:10 PDT"]
[Termination "Sammed_Shete won by resignation"]

1. e4 {[%clk 0:02:58.5]} 1... e6 {[%clk 0:03:00.2]} 2. d4 {[%clk 0:02:57.9]}
2... d5 {[%clk 0:03:01.1]} 3. Nc3 {[%clk 0:02:57.8]} 3... Nf6 {[%clk 0:03:01.3]}
4. exd5 {[%clk 0:02:57.4]} 4... exd5 {[%clk 0:03:01.2]} 5. Bd3 {[%clk
0:02:57.5]} 5... Bd6 {[%clk 0:02:58.1]} 6. Nge2 {[%clk 0:02:57.5]} 6... c6
{[%clk 0:02:58]} 7. O-O {[%clk 0:02:57.2]} 7... O-O {[%clk 0:02:58.4]} 8. Bf4
{[%clk 0:02:57.1]} 8... Be6 {[%clk 0:02:57.2]} 9. Qd2 {[%clk 0:02:56.3]} 9... h6
{[%clk 0:02:44.1]} 10. Bg3 {[%clk 0:02:55.4]} 10... Bxg3 {[%clk 0:02:41.4]} 11.
hxg3 {[%clk 0:02:54.3]} 11... Re8 {[%clk 0:02:30]} 12. Nf4 {[%clk 0:02:51.2]}
12... Nbd7 {[%clk 0:02:29.8]} 13. Rfe1 {[%clk 0:02:51.1]} 13... Nf8 {[%clk
0:02:27.8]} 14. a4 {[%clk 0:02:48.4]} 14... Bd7 {[%clk 0:02:22.1]} 15. a5 {[%clk
0:02:47.7]} 15... Qc7 {[%clk 0:02:19.1]} 16. b4 {[%clk 0:02:12.6]} 16... Ne6
{[%clk 0:02:16.7]} 17. Nxe6 {[%clk 0:02:01.8]} 17... Rxe6 {[%clk 0:02:16.1]} 18.
Rxe6 {[%clk 0:01:56.7]} 18... Bxe6 {[%clk 0:02:17]} 19. Re1 {[%clk 0:01:55.1]}
19... b6 {[%clk 0:02:10.5]} 20. Qf4 {[%clk 0:01:51.1]} 20... Qxf4 {[%clk
0:02:08.6]} 21. gxf4 {[%clk 0:01:52]} 21... bxa5 {[%clk 0:02:05.6]} 22. bxa5
{[%clk 0:01:51.7]} 22... Rb8 {[%clk 0:01:57.6]} 23. Na4 {[%clk 0:01:50.7]} 23...
Rb4 {[%clk 0:01:52.4]} 24. Nc5 {[%clk 0:01:49.4]} 24... Rxd4 {[%clk 0:01:38.2]}
25. f5 {[%clk 0:01:34.3]} 25... Bc8 {[%clk 0:01:37.5]} 26. Rb1 {[%clk
0:01:33.8]} 26... Ne8 {[%clk 0:01:27.5]} 27. Rb8 {[%clk 0:01:25.3]} 27... Nd6
{[%clk 0:01:26.2]} 28. Nb7 {[%clk 0:00:59.1]} 28... Nxb7 {[%clk 0:01:22.4]} 29.
Rxc8+ {[%clk 0:00:58.2]} 29... Kh7 {[%clk 0:01:22]} 30. f6+ {[%clk 0:00:58.6]}
30... g6 {[%clk 0:01:21.6]} 31. Rc7 {[%clk 0:00:55.5]} 31... Nd6 {[%clk
0:01:19.5]} 32. Rd7 {[%clk 0:00:55.5]} 32... Ne4 {[%clk 0:01:19.6]} 33. Rxf7+
{[%clk 0:00:54.7]} 33... Kg8 {[%clk 0:01:18.5]} 34. Rxa7 {[%clk 0:00:45.2]}
34... c5 {[%clk 0:01:13]} 35. a6 {[%clk 0:00:38.4]} 35... c4 {[%clk 0:01:12.7]}
36. Bxe4 {[%clk 0:00:38.1]} 36... dxe4 {[%clk 0:01:10.4]} 37. Rb7 {[%clk
0:00:37.1]} 1-0

[Event "*** SCC Grand Prix: Titled Tuesday Blitz"]
[Site "Chess.com"]
[Date "2020.08.11"]
[Round "1"]
[White "Anna_ChessMate"]
[Black "Ashedu66"]
[Result "1-0"]
[WhiteElo "2621"]
[BlackElo "2274"]
[TimeControl "180+1"]
[EndTime "10:06:10 PDT"]
[Termination "Anna_ChessMate won by resignation"]

1. d4 {[%clk 0:03:00.9]} 1... d5 {[%clk 0:02:58.8]} 2. c4 {[%clk 0:03:01]} 2...
c6 {[%clk 0:02:58.2]} 3. Nf3 {[%clk 0:02:58.6]} 3... Nf6 {[%clk 0:02:58.1]} 4.
Nc3 {[%clk 0:02:58.7]} 4... e6 {[%clk 0:02:58]} 5. e3 {[%clk 0:02:58.2]} 5...
Nbd7 {[%clk 0:02:57.9]} 6. Bd3 {[%clk 0:02:57]} 6... Bd6 {[%clk 0:02:57]} 7. b3
{[%clk 0:02:54.5]} 7... O-O {[%clk 0:02:50.3]} 8. O-O {[%clk 0:02:54.2]} 8...
Qe7 {[%clk 0:02:47.1]} 9. e4 {[%clk 0:02:50.5]} 9... dxc4 {[%clk 0:02:42.7]} 10.
bxc4 {[%clk 0:02:46.9]} 10... e5 {[%clk 0:02:41.1]} 11. d5 {[%clk 0:02:40.6]}
11... Nc5 {[%clk 0:02:29.7]} 12. Bc2 {[%clk 0:02:38.7]} 12... Bg4 {[%clk
0:02:19.6]} 13. h3 {[%clk 0:02:35.9]} 13... Bh5 {[%clk 0:02:18.8]} 14. a4 {[%clk
0:02:31.9]} 14... Rad8 {[%clk 0:02:14.2]} 15. Qe2 {[%clk 0:02:27.2]} 15... Bg6
{[%clk 0:02:00.4]} 16. Bg5 {[%clk 0:02:27.1]} 16... h6 {[%clk 0:01:59.5]} 17.
Bh4 {[%clk 0:02:27.3]} 17... Bh7 {[%clk 0:01:56.9]} 18. a5 {[%clk 0:02:18.2]}
18... a6 {[%clk 0:01:52.5]} 19. Rfb1 {[%clk 0:02:04.1]} 19... Kh8 {[%clk
0:01:38]} 20. g4 {[%clk 0:02:02.7]} 20... g5 {[%clk 0:01:36]} 21. Bg3 {[%clk
0:01:56.4]} 21... Rg8 {[%clk 0:01:32.1]} 22. Nd2 {[%clk 0:01:53.2]} 22... h5
{[%clk 0:01:24.7]} 23. f3 {[%clk 0:01:47.2]} 23... h4 {[%clk 0:01:16.9]} 24. Bf2
{[%clk 0:01:46.4]} 24... Nfd7 {[%clk 0:01:16.4]} 25. Nf1 {[%clk 0:01:45.9]}
25... f6 {[%clk 0:01:07.9]} 26. Ne3 {[%clk 0:01:36.6]} 26... Rb8 {[%clk
0:01:04]} 27. Na4 {[%clk 0:01:23]} 27... Nxa4 {[%clk 0:00:56.8]} 28. Bxa4 {[%clk
0:01:23.9]} 28... Rgc8 {[%clk 0:00:23.2]} 29. Rxb7 {[%clk 0:01:07.9]} 29... Rxb7
{[%clk 0:00:21.9]} 30. dxc6 {[%clk 0:01:08.4]} 30... Rxc6 {[%clk 0:00:18.2]} 31.
Bxc6 {[%clk 0:01:07.5]} 31... Rb2 {[%clk 0:00:18.1]} 32. Qxb2 {[%clk 0:01:06.3]}
1-0